Workbook

Sheet 解説
B2: 関数の使い方見本 (CS三級レベル)
B3: 品名 | C3: 売上 | D3: 順位 | E3: 白地の部分を変更してみてください。
B4: A商品 | C4: 2500 | D4: =RANK(C4,$C$4:$C$10,0) -> 6 | E4: 緑の部分に式が入っています。
B5: B商品 | C5: 15000 | D5: 3
B6: C商品 | C6: 2000 | D6: 7
B7: D商品 | C7: 16000 | D7: 2
B8: E商品 | C8: 9800 | D8: 4
B9: F商品 | C9: 7500 | D9: 5
B10: G商品 | C10: 80000 | D10: 1
B11: 合計 | C11: =SUM(C4:C10) -> 132800
B12: 平均 | C12: =AVERAGE(C4:C10) -> 18971.42857
B13: 最高 | C13: =MAX(C4:C10) -> 80000
B14: 最低 | C14: =MIN(C4:C10) -> 2000
B15: 種類数 | C15: =COUNT(C4:C10) -> 7
B17: 関数の使い方見本 (CS二級レベル)
B18: 売上結果 | E18: 掛率 | F18: 0.75 | H18: 商品データ
B19: 品名 | C19: 価格 | D19: 売価 | E19: 仕入価 | F19: 利益 | H19: 品名 | I19: 価格 | J19: 仕入価
B20: A-10515C | C20: =VLOOKUP(B20,$H$20:$J$24,2,FALSE) -> 18000 | D20: =ROUNDUP($F$18*C20,-3)-200 -> 13800 | E20: =VLOOKUP(B20,$H$20:$J$24,3,FALSE) -> 12500 | F20: =D20-E20 -> 1300 | H20: A-10515C | I20: 18000 | J20: 12500
B21: E-A15B24 | C21: 72500 | D21: 54800 | E21: 50000 | F21: 4800 | H21: D-30780A | I21: 64800 | J21: 45000
B22: A-10523C | C22: 98000 | D22: 73800 | E22: 41000 | F22: 32800 | H22: E-A15B24 | I22: 72500 | J22: 50000
B23: E-A15B24 | C23: 72500 | D23: 54800 | E23: 50000 | F23: 4800 | H23: A-10523C | I23: 98000 | J23: 41000
B24: D-30780A | C24: 64800 | D24: 48800 | E24: 45000 | F24: 3800 | H24: E-A15C16 | I24: 9800 | J24: 7100
B25: D-30780A | C25: 64800 | D25: 48800 | E25: 45000 | F25: 3800
B26: D-30780A | C26: 64800 | D26: 48800 | E26: 45000 | F26: 3800
B27: A-10523C | C27: 98000 | D27: 73800 | E27: 41000 | F27: 32800 | H27: 最大利益品 | I27: =INDEX(B20:B29,MATCH(MAX(F20:F29),F20:F29,FALSE)) -> A-10523C
B28: D-30780A | C28: 64800 | D28: 48800 | E28: 45000 | F28: 3800 | H28: 最小利益品 | I28: =INDEX(B20:B29,MATCH(MIN(F20:F29),F20:F29,FALSE)) -> E-A15C16
B29: E-A15C16 | C29: 9800 | D29: 7800 | E29: 7100 | F29: 700
B30: 合 計 | C30: =SUM(C20:C29) -> 628000 | D30: =SUM(D20:D29) -> 474000 | E30: =SUM(E20:E29) -> 381600 | F30: =SUM(F20:F29) -> 92400
B33: 実務レベル | E33: コード | F33: 1 | J33: コード | K33: 名前 | L33: 住所 | M33: 電話番号 | N33: ランク | O33: 担当 | P33: 販売額 | Q33: 請求額 | R33: 購入日 | T33: ランク | U33: 値引率
J34: 1 | K34: 近井 瑪瑙 | L34: 東京都目黒区 | M34: 090-1111-2222 | N34: A | O34: １課 | P34: 5200 | Q34: =ROUNDUP(P34*(1-VLOOKUP(N34,$T$34:$U$37,2,FALSE)),-2) -> 5100 | R34: 2008-01-15 | T34: S | U34: 0.05
J35: 2 | K35: 目地 潔 | L35: 東京都品川区 | M35: 080-1234-5678 | N35: S | O35: ２課 | P35: 103300 | Q35: 98200 | R35: 2008-01-16 | T35: A | U35: 0.03
J36: 3 | K36: 塁川 鈴女 | L36: 千葉県千葉市 | M36: 090-3131-2121 | N36: B | O36: ３課 | P36: 21100 | Q36: 20900 | R36: 2008-01-17 | T36: B | U36: 0.01
B37: ご芳名 | C37: =INDEX($J$34:$R$53,$F$33,2)&" 様" -> 近井 瑪瑙 様 | J37: 4 | K37: 節川 桜子 | L37: 東京都東村山市 | M37: 070-5678-8765 | N37: A | O37: ３課 | P37: 69700 | Q37: 67700 | R37: 2008-01-17 | T37: C | U37: 0
J38: 5 | K38: 岸川 森羅 | L38: 大阪府大阪市 | M38: 090-0011-9977 | N38: A | O38: ２課 | P38: 66500 | Q38: 64600 | R38: 2008-01-18
B39: ご 住 所 | C39: =INDEX($J$34:$R$53,$F$33,3) -> 東京都目黒区 | J39: 6 | K39: 猫山 狗雄 | L39: 東京都葛飾区 | M39: 110-623-4318 | N39: B | O39: ３課 | P39: 81800 | Q39: 81000 | R39: 2008-01-18
B40: ご連絡先 | C40: =INDEX($J$34:$R$53,$F$33,4) -> 090-1111-2222 | J40: 7 | K40: 井山 毬藻 | L40: 埼玉県所沢市 | M40: 090-4444-5555 | N40: C | O40: １課 | P40: 68500 | Q40: 68500 | R40: 2008-01-19
J41: 8 | K41: 椎名 涅槃 | L41: 東京都太田区 | M41: 090-9852-1675 | N41: A | O41: １課 | P41: 82800 | Q41: 80400 | R41: 2008-01-19
B42: 今回の請求額 | J42: 9 | K42: 比地 鱒雄 | L42: 千葉県流山市 | M42: 070-4532-9513 | N42: B | O42: ２課 | P42: 9000 | Q42: 9000 | R42: 2008-01-20
B43: ="金 "&TEXT(INDEX($J$34:$R$53,$F$33,8),"[DBNum2][$-411]G/標準")&" 円也" -> 金 伍阡壱百 円也 | J43: 10 | K43: 杉菜 土筆 | L43: 茨城県つくば市 | M43: 0120-15-2764 | N43: A | O43: １課 | P43: 62200 | Q43: 60400 | R43: 2008-01-21
J44: 11 | K44: 鶴多 朱鷺 | L44: 千葉県柏市 | M44: 110-119-4567 | N44: B | O44: ３課 | P44: 33400 | Q44: 33100 | R44: 2008-01-22
B45: ="ＡＢＣ商事 担当課 "&INDEX($J$34:$O$53,$F$33,6) -> ＡＢＣ商事 担当課 １課 | J45: 12 | K45: 袈裟地 燕 | L45: 神奈川県鎌倉市 | M45: 090-7351-9435 | N45: B | O45: １課 | P45: 49100 | Q45: 48700 | R45: 2008-01-23
J46: 13 | K46: 藤山 深雪 | L46: 東京都板橋区 | M46: 080-3517-6482 | N46: C | O46: ２課 | P46: 52500 | Q46: 52500 | R46: 2008-01-24
J47: 14 | K47: 仁和 海豚 | L47: 千葉県千葉市 | M47: 0120-45-6250 | N47: B | O47: ３課 | P47: 64400 | Q47: 63800 | R47: 2008-01-24
J48: 15 | K48: 雪山 清美 | L48: 東京都新宿区 | M48: 070-5462-8451 | N48: A | O48: １課 | P48: 5200 | Q48: 5100 | R48: 2008-01-25
J49: 16 | K49: 立冬 霜月 | L49: 茨城県土浦市 | M49: 090-4682-1564 | N49: B | O49: ２課 | P49: 64300 | Q49: 63700 | R49: 2008-01-26
J50: 17 | K50: 冬至 蜜柑 | L50: 神奈川県逗子市 | M50: 119-456-2543 | N50: S | O50: １課 | P50: 77000 | Q50: 73200 | R50: 2008-01-27
J51: 18 | K51: 沓崎 睦月 | L51: 埼玉県さいたま市 | M51: 090-0034-2651 | N51: C | O51: ２課 | P51: 20500 | Q51: 20500 | R51: 2008-01-28
J52: 19 | K52: 牛山 弥生 | L52: 東京都練馬区 | M52: 080-1245-7896 | N52: A | O52: ３課 | P52: 54700 | Q52: 53100 | R52: 2008-01-29
J53: 20 | K53: 鉄火 真紀 | L53: 神奈川県厚木市 | M53: 0120-58-1567 | N53: B | O53: ３課 | P53: 64700 | Q53: 64100 | R53: 2008-01-29

Sheet 課題
A1: 下図のとおりの表を作成しなさい。
A2: 条件
A3: ・15行の行高は35、16-34行は行高12
A4: ・A列の幅は2、B列の幅は3、C:L列の幅は自動とする
A5: ・タイトルは24P、MS明朝体、文字色は白、セル背景は黒、B:Lを結合し中寄せ、枠線は太線の黒
A6: ・B16:L35の文字サイズは１０ポイント
A7: ・B16:L34の罫線は外枠を太線にする
A8: ・グループ名は縦書きで上下左右に中央揃え
A9: ・セル装飾は図のとおりとする
A10: ・小計行の合計や平均は各グループでの合計や平均を表示させて下さい。
A11: ・順位は合計値で決定してください。
A12: ・データの不足部は全て式で補うこと。
A13: ・「今日の日付」は閲覧時の日付が自動的に表示されること。
C15: 本日の営業成績
C16: 氏名 | D16: 商品A | E16: 商品B | F16: 商品C | G16: 商品D | H16: 合計 | I16: 平均 | J16: 最高 | K16: 最低 | L16: 順位
B17: グループA | C17: 近井 瑪瑙 | D17: 73000 | E17: 61000 | F17: 76000 | G17: 81000
C18: 目地 潔 | D18: 43000 | E18: 105000 | F18: 43000 | G18: 50000
C19: 塁川 鈴女 | D19: 72000 | E19: 119000 | F19: 76000 | G19: 90000
C20: 節川 桜子 | D20: 94000 | E20: 118000 | F20: 123000 | G20: 78000
C21: 岸川 森羅 | D21: 128000 | E21: 82000 | F21: 51000 | G21: 53000
C22: 猫山 狗雄 | D22: 127000 | E22: 39000 | F22: 59000 | G22: 118000
C23: 小 計
B24: グループB | C24: 井山 毬藻 | D24: 102000 | E24: 111000 | F24: 98000 | G24: 74000
C25: 椎名 涅槃 | D25: 121000 | E25: 104000 | F25: 64000 | G25: 118000
C26: 比地 鱒雄 | D26: 65000 | E26: 123000 | F26: 37000 | G26: 80000
C27: 杉菜 土筆 | D27: 84000 | E27: 39000 | F27: 107000 | G27: 89000
C28: 鶴多 朱鷺 | D28: 40000 | E28: 126000 | F28: 46000 | G28: 55000
C29: 袈裟地 燕 | D29: 73000 | E29: 101000 | F29: 125000 | G29: 63000
C30: 小 計
B31: 合計
B32: 平均
B33: 最高
B34: 最低
H35: 今日の日付：

Sheet 課題２
A1: 下図のとおりの表を作成しなさい。
A2: 条件
A3: ・15-32行の行高は15、タイトル行は30
A4: ・タイトルはMS明朝の24P、文字色は白、セルはB:Oを結合しセンタリング、セル色は緑、枠は黒い太線とします。
A5: ・タイトル以外の文字サイズは10.5ポイント
A6: ・Ａ列の幅は２、Ｂ列とO列の幅は8.5、C:N列の幅は6とする。
A7: ・順位は最高タイムで競います。
A8: ・当然ながら、早い方が最高タイムです。
A9: ・ブービーはビリから２番目のことです。
A10: ・表彰者のデータは１８－２９行のセルを参照してください。
A11: ・表彰者の名前欄は判らなければ無回答でもかまいません。
B14: レース結果
B16: 氏名 | C16: タイム | H16: 結果 | M16: 表彰者
C17: 1回目 | D17: 2回目 | E17: 3回目 | F17: 4回目 | G17: 5回目 | H17: 最高 | I17: 平均 | J17: 走行数 | K17: 順位 | M17: 順位 | N17: タイム | O17: 名前
B18: 藤山 深雪 | C18: 10.72 | D18: 11.19 | E18: 11.39 | F18: 11.65 | G18: 11.39 | M18: 優勝
B19: 仁和 海豚 | C19: 11.21 | D19: 11.05 | G19: 11.53 | M19: 準優勝
B20: 雪山 清美 | C20: 9.9 | D20: 9.31 | E20: 9.31 | F20: 9.15 | G20: 10.56 | M20: ３位
B21: 立冬 霜月 | C21: 11.72 | D21: 11.47 | E21: 11.7 | G21: 12.37 | M21: ブービー
B22: 冬至 蜜柑 | C22: 11.24 | D22: 11.16 | E22: 10.52 | F22: 10.19 | G22: 10.67
B23: 沓崎 睦月 | C23: 10.21 | D23: 9.23 | E23: 9.08 | F23: 10.49 | G23: 9.89 | M23: 日付：
B24: 牛山 弥生 | C24: 9.35 | D24: 10.09 | E24: 10.95 | F24: 10.84 | G24: 9.49
B25: 鉄火 真紀 | C25: 11.01 | D25: 11.81 | E25: 11.94 | F25: 11.94 | G25: 10.71
B26: 烈川 怒涛 | D26: 12.39 | E26: 11.25 | F26: 12.94
B27: 夏至 孔雀 | C27: 11.05 | D27: 10.38 | E27: 11.33 | F27: 11.68 | G27: 11.55
B28: 沼地 鯉蔵 | C28: 10.27 | E28: 11.53 | F28: 11.11 | G28: 11.01
B29: 醍醐 ミカ | C29: 10.65 | D29: 10.93 | E29: 10.99 | F29: 11.58
B30: 最高
B31: 平均
B32: 走行数

Sheet 課題３
A1: 下図のとおりの表をB15から下に作成しなさい。
A2: 条件
A3: ・15行の行高は30、16-30行は行高12
A4: ・A列の幅は2、B:C列の幅は4、D:KとM:N列の幅は5、L列は８とする
A5: ・タイトルは24P、MSゴシック体、文字色は青で太文字、インデント５の均等割付
A6: ・タイトルのセルはB:Nを結合し、背景は縦横メッシュの黄色い網掛け、枠線は太線の黒
A7: ・タイトル以外の文字サイズは１０ポイント
A8: ・他のセル装飾は図のとおりとする
A9: ・一日目と二日目の評価は時間が８時間未満の場合に「×」が表示されるようにしてください。
A10: ・総合の評価は一日目と二日目の評価のどちらかに×が有れば「(-_-#)」が表示されるようにしてください。
A11: ・総合の氏名欄は苗字と名前の間に半角スペースを入れること。
A12: ・データの不足部は白地の部分は入力し、他の部分は全て式で補うこと。
B15: 活動参加時間
B16: 参加者 | D16: 一日目 | H16: 二日目 | L16: ２日間総合
B17: 姓 | C17: 名 | D17: 開始 | E17: 終了 | F17: 時間 | G17: 評価 | H17: 開始 | I17: 終了 | J17: 時間 | K17: 評価 | L17: 氏名 | M17: 時間 | N17: 評価
D30: 平均時間 | H30: 平均時間 | L30: 平均

Sheet 課題４
A1: 下図のとおりの表をB15から下に作成しなさい。
A2: 条件
A3: ・15-31行の行高は自動とする
A4: ・A列の幅は2、B列の幅は８、C:S列の幅は3.5、T:W列は自動調整とする
A5: ・C19:S19は縦書きとする
A6: ・B15:W31のフォントは10Pとする
A7: ・B15:F17、G15:G17、H15:J16、H17:J17、K15:V15、K16:V16、K17:V17、T30:T31、U30:V30、U31:V31をそれぞれセル結合しなさい
A8: ・他のセル装飾は図のとおりとする
A9: ・来期待遇、成否、可否は「基準」に従い、W列を参照して式を作ってください。
A10: ・データの不足部はB19:S29の部分は入力し、他の部分は全て式で補うこと。
B15: 今期の採択状況です。 欠席の多い委員は解任 させていただきます。 | G15: 基準 | H15: 採択基準 | K15: 投票成立は、投票率が右の比率を超えていること。 | W15: 0.8
K16: 可決は出席委員の賛成が右の値を超えていること | W16: 0.5
H17: 来期待遇 | K17: 出席率がが右の値を超えていなければ「解任」 | W17: 0.5
B19: 委員名 項目 | C19: 村多 | D19: 近井 | E19: 目地 | F19: 塁川 | G19: 節川 | H19: 岸川 | I19: 猫山 | J19: 井山 | K19: 椎名 | L19: 比地 | M19: 杉菜 | N19: 鶴多 | O19: 袈裟地 | P19: 三輪 | Q19: 藤山 | R19: 仁和 | S19: 雪山 | T19: 投票率 | U19: 成否 | V19: 賛成数 | W19: 可否
B20: 議題１ | C20: ○ | D20: × | E20: ○ | F20: × | J20: × | K20: ○ | N20: × | P20: ○ | Q20: × | S20: ×
B21: 議題２ | D21: ○ | E21: ○ | F21: × | J21: × | K21: ○ | N21: ○ | P21: × | Q21: ○ | R21: × | S21: ○
B22: 議題３ | D22: × | E22: ○ | F22: ○ | J22: × | K22: ○ | P22: × | Q22: × | R22: ○
B23: 議題５ | C23: × | D23: × | E23: × | F23: ○ | J23: ○ | K23: ○ | P23: ○ | Q23: ○ | R23: ○ | S23: ×
B24: 議題６ | D24: × | E24: × | F24: × | J24: × | K24: × | P24: × | Q24: × | R24: × | S24: ○
B25: 議題７ | D25: ○ | E25: ○ | F25: ○ | K25: ○ | P25: ○ | Q25: ○ | R25: ○ | S25: ○
B26: 議題８ | D26: ○ | E26: ○ | F26: ○ | J26: × | K26: ○ | N26: × | P26: ○ | Q26: × | S26: ×
B27: 議題１０ | D27: × | E27: ○ | F27: ○ | K27: × | P27: ○ | Q27: × | R27: ○ | S27: ×
B28: 議題１１ | J28: ○ | K28: ○ | P28: ○ | Q28: × | R28: ○
B29: 議題１２ | J29: ○ | K29: × | N29: × | P29: ○ | Q29: ○ | S29: ○
B30: 出席率
B31: 来期待遇

Sheet 課題５
A1: 下図のとおりの表をB15から下に作成しなさい。
A2: 条件
A3: ・15-32行の行高は13とする
A4: ・A列の幅は2、B:C列の幅は4、D:N列の幅は5とする
A5: ・タイトル以外のB15:N32のフォントは10Pとする
A6: ・タイトルのセルは背景を紫、フォントをMSP明朝の20P、白、太文字とする
A7: ・他のセル装飾は図のとおりとする
A8: ・平均は関数を用いて小数点以下第１位に四捨五入すること
A9: ・判定は判定基準の値未満の場合に「◆」と表示し、総合は判定に１個でも◆が有れば「◆」が表示されるようにすること
A10: ・順位は合計得点で決定すること
A11: ・データの不足部は白地の部分は入力し、他の部分は全て式で補うこと。
B15: Excel 試験結果 | J15: 判定 | K15: 学科１ | L15: 学科２ | M15: 実技１ | N15: 実技２
J16: 基準 | K16: 80 | L16: 60 | M16: 60 | N16: 75
B18: 姓 | C18: 名 | D18: 得点 | I18: 判定
D19: 学科１ | E19: 学科２ | F19: 実技１ | G19: 実技２ | H19: 合計 | I19: 学科１ | J19: 学科２ | K19: 実技１ | L19: 実技２ | M19: 総合 | N19: 順位
B32: 平均

Sheet 解答
A1: 下図のとおりの表を作成しなさい。
A2: 条件
A3: ・15行の行高は35、16-34行は行高12
A4: ・A列の幅は2、B列の幅は3、C:L列の幅は自動とする
A5: ・タイトルは24P、MS明朝体、文字色は白、セル背景は黒、B:Lを結合し中寄せ、枠線は太線の黒
A6: ・B16:L35の文字サイズは１０ポイント
A7: ・B16:L34の罫線は外枠を太線にする
A8: ・グループ名は縦書きで上下左右に中央揃え
A9: ・セル装飾は図のとおりとする
A10: ・小計行の合計や平均は各グループでの合計や平均を表示させて下さい。
A11: ・順位は合計値で決定してください。
A12: ・データの不足部は全て式で補うこと。
A13: ・「今日の日付」は閲覧時の日付が自動的に表示されること。
B15: 本日の営業成績
C16: 氏名 | D16: 商品A | E16: 商品B | F16: 商品C | G16: 商品D | H16: 合計 | I16: 平均 | J16: 最高 | K16: 最低 | L16: 順位
B17: グループA | C17: 近井 瑪瑙 | D17: 73000 | E17: 61000 | F17: 76000 | G17: 81000 | H17: =SUM(D17:G17) -> 291000 | I17: =AVERAGE(D17:G17) -> 72750 | J17: =MAX(D17:G17) -> 81000 | K17: =MIN(D17:G17) -> 61000 | L17: =RANK(H17,($H$17:$H$22,$H$24:$H$29),0) -> 10
C18: 目地 潔 | D18: 43000 | E18: 105000 | F18: 43000 | G18: 50000 | H18: 241000 | I18: 60250 | J18: 105000 | K18: 43000 | L18: =RANK(H18,($H$17:$H$22,$H$24:$H$29),0) -> 12
C19: 塁川 鈴女 | D19: 72000 | E19: 119000 | F19: 76000 | G19: 90000 | H19: 357000 | I19: 89250 | J19: 119000 | K19: 72000 | L19: =RANK(H19,($H$17:$H$22,$H$24:$H$29),0) -> 5
C20: 節川 桜子 | D20: 94000 | E20: 118000 | F20: 123000 | G20: 78000 | H20: 413000 | I20: 103250 | J20: 123000 | K20: 78000 | L20: =RANK(H20,($H$17:$H$22,$H$24:$H$29),0) -> 1
C21: 岸川 森羅 | D21: 128000 | E21: 82000 | F21: 51000 | G21: 53000 | H21: 314000 | I21: 78500 | J21: 128000 | K21: 51000 | L21: =RANK(H21,($H$17:$H$22,$H$24:$H$29),0) -> 8
C22: 猫山 狗雄 | D22: 127000 | E22: 39000 | F22: 59000 | G22: 118000 | H22: 343000 | I22: 85750 | J22: 127000 | K22: 39000 | L22: =RANK(H22,($H$17:$H$22,$H$24:$H$29),0) -> 6
C23: 小 計 | D23: =SUM(D17:D22) -> 537000 | E23: =SUM(E17:E22) -> 524000 | F23: =SUM(F17:F22) -> 428000 | G23: =SUM(G17:G22) -> 470000 | H23: =SUM(H17:H22) -> 1959000 | I23: =AVERAGE(I17:I22) -> 81625 | J23: =MAX(J17:J22) -> 128000 | K23: =MIN(K17:K22) -> 39000
B24: グループB | C24: 井山 毬藻 | D24: 102000 | E24: 111000 | F24: 98000 | G24: 74000 | H24: =SUM(D24:G24) -> 385000 | I24: =AVERAGE(D24:G24) -> 96250 | J24: =MAX(D24:G24) -> 111000 | K24: =MIN(D24:G24) -> 74000 | L24: =RANK(H24,($H$17:$H$22,$H$24:$H$29),0) -> 3
C25: 椎名 涅槃 | D25: 121000 | E25: 104000 | F25: 64000 | G25: 118000 | H25: 407000 | I25: 101750 | J25: 121000 | K25: 64000 | L25: =RANK(H25,($H$17:$H$22,$H$24:$H$29),0) -> 2
C26: 比地 鱒雄 | D26: 65000 | E26: 123000 | F26: 37000 | G26: 80000 | H26: 305000 | I26: 76250 | J26: 123000 | K26: 37000 | L26: =RANK(H26,($H$17:$H$22,$H$24:$H$29),0) -> 9
C27: 杉菜 土筆 | D27: 84000 | E27: 39000 | F27: 107000 | G27: 89000 | H27: 319000 | I27: 79750 | J27: 107000 | K27: 39000 | L27: =RANK(H27,($H$17:$H$22,$H$24:$H$29),0) -> 7
C28: 鶴多 朱鷺 | D28: 40000 | E28: 126000 | F28: 46000 | G28: 55000 | H28: 267000 | I28: 66750 | J28: 126000 | K28: 40000 | L28: =RANK(H28,($H$17:$H$22,$H$24:$H$29),0) -> 11
C29: 袈裟地 燕 | D29: 73000 | E29: 101000 | F29: 125000 | G29: 63000 | H29: 362000 | I29: 90500 | J29: 125000 | K29: 63000 | L29: =RANK(H29,($H$17:$H$22,$H$24:$H$29),0) -> 4
C30: 小 計 | D30: =SUM(D24:D29) -> 485000 | E30: =SUM(E24:E29) -> 604000 | F30: =SUM(F24:F29) -> 477000 | G30: =SUM(G24:G29) -> 479000 | H30: =SUM(H24:H29) -> 2045000 | I30: =AVERAGE(I24:I29) -> 85208.33333 | J30: =MAX(J24:J29) -> 126000 | K30: =MIN(K24:K29) -> 37000
B31: 合計 | D31: =SUM(D17:D22,D24:D29) -> 1022000 | E31: =SUM(E17:E22,E24:E29) -> 1128000 | F31: 905000 | G31: 949000 | H31: 4004000 | I31: 1001000 | J31: 1396000 | K31: 661000
B32: 平均 | D32: =AVERAGE(D17:D22,D24:D29) -> 85166.66667 | E32: 94000 | F32: 75416.66667 | G32: 79083.33333 | H32: 333666.6667 | I32: 83416.66667 | J32: 116333.3333 | K32: 55083.33333
B33: 最高 | D33: =MAX(D17:D22,D24:D29) -> 128000 | E33: 126000 | F33: 125000 | G33: 118000 | H33: 413000 | I33: 103250 | J33: 128000 | K33: 78000
B34: 最低 | D34: =MIN(D17:D22,D24:D29) -> 40000 | E34: =MIN(E17:E22,E24:E29) -> 39000 | F34: 37000 | G34: 50000 | H34: 241000 | I34: 60250 | J34: 81000 | K34: 37000
H35: 今日の日付： | I35: =TODAY() -> 2017-02-03

Sheet 解答２
A1: 下図のとおりの表を作成しなさい。
A2: 条件
A3: ・15-32行の行高は15、タイトル行は30
A4: ・タイトルはMS明朝の24P、文字色は白、セルはB:Oを結合しセンタリング、セル色は緑、枠は黒い太線とします。
A5: ・タイトル以外の文字サイズは10.5ポイント
A6: ・Ａ列の幅は２、Ｂ列とO列の幅は8.5、C:N列の幅は6とする。
A7: ・順位は最高タイムで競います。
A8: ・当然ながら、早い方が最高タイムです。
A9: ・ブービーはビリから２番目のことです。
A10: ・表彰者のデータは１８－２９行のセルを参照してください。
A11: ・表彰者の名前欄は判らなければ無回答でもかまいません。
A12: ・「日付」は閲覧時の日付が自動的に表示されること。
B14: レース結果
B16: 氏名 | C16: タイム | H16: 結果 | M16: 表彰者
C17: 1回目 | D17: 2回目 | E17: 3回目 | F17: 4回目 | G17: 5回目 | H17: 最高 | I17: 平均 | J17: 走行数 | K17: 順位 | M17: 順位 | N17: タイム | O17: 名前
B18: 藤山 深雪 | C18: 10.72 | D18: 11.19 | E18: 11.39 | F18: 11.65 | G18: 11.39 | H18: =MIN(C18:G18) -> 10.72 | I18: =AVERAGE(C18:G18) -> 11.268 | J18: =COUNT(C18:G18) -> 5 | K18: =RANK(H18,$H$18:$H$29,1) -> 9 | M18: 優勝 | N18: =MIN(H18:H29) -> 9.08 | O18: =INDEX($B$18:$B$29,MATCH(N18,$H$18:$H$29,FALSE)) -> 沓崎 睦月
B19: 仁和 海豚 | C19: 11.21 | D19: 11.05 | G19: 11.53 | H19: =MIN(C19:G19) -> 11.05 | I19: =AVERAGE(C19:G19) -> 11.26333333 | J19: =COUNT(C19:G19) -> 3 | K19: =RANK(H19,$H$18:$H$29,1) -> 10 | M19: 準優勝 | N19: =SMALL(H18:H29,2) -> 9.15 | O19: =INDEX($B$18:$B$29,MATCH(N19,$H$18:$H$29,FALSE)) -> 雪山 清美
B20: 雪山 清美 | C20: 9.9 | D20: 9.31 | E20: 9.31 | F20: 9.15 | G20: 10.56 | H20: 9.15 | I20: 9.646 | J20: 5 | K20: 2 | M20: ３位 | N20: =SMALL(H18:H29,3) -> 9.35 | O20: =INDEX($B$18:$B$29,MATCH(N20,$H$18:$H$29,FALSE)) -> 牛山 弥生
B21: 立冬 霜月 | C21: 11.72 | D21: 11.47 | E21: 11.7 | G21: 12.37 | H21: 11.47 | I21: 11.815 | J21: 4 | K21: 12 | M21: ブービー | N21: =LARGE(H18:H29,2) -> 11.25 | O21: =INDEX($B$18:$B$29,MATCH(N21,$H$18:$H$29,FALSE)) -> 烈川 怒涛
B22: 冬至 蜜柑 | C22: 11.24 | D22: 11.16 | E22: 10.52 | F22: 10.19 | G22: 10.67 | H22: 10.19 | I22: 10.756 | J22: 5 | K22: 4
B23: 沓崎 睦月 | C23: 10.21 | D23: 9.23 | E23: 9.08 | F23: 10.49 | G23: 9.89 | H23: 9.08 | I23: 9.78 | J23: 5 | K23: 1 | M23: 日付： | N23: =TODAY() -> 2017-02-03
B24: 牛山 弥生 | C24: 9.35 | D24: 10.09 | E24: 10.95 | F24: 10.84 | G24: 9.49 | H24: 9.35 | I24: 10.144 | J24: 5 | K24: 3
B25: 鉄火 真紀 | C25: 11.01 | D25: 11.81 | E25: 11.94 | F25: 11.94 | G25: 10.71 | H25: 10.71 | I25: 11.482 | J25: 5 | K25: 8
B26: 烈川 怒涛 | D26: 12.39 | E26: 11.25 | F26: 12.94 | H26: 11.25 | I26: 12.19333333 | J26: 3 | K26: 11
B27: 夏至 孔雀 | C27: 11.05 | D27: 10.38 | E27: 11.33 | F27: 11.68 | G27: 11.55 | H27: 10.38 | I27: 11.198 | J27: 5 | K27: 6
B28: 沼地 鯉蔵 | C28: 10.27 | E28: 11.53 | F28: 11.11 | G28: 11.01 | H28: 10.27 | I28: 10.98 | J28: 4 | K28: 5
B29: 醍醐 ミカ | C29: 10.65 | D29: 10.93 | E29: 10.99 | F29: 11.58 | H29: 10.65 | I29: 11.0375 | J29: 4 | K29: 7
B30: 最高 | C30: =MIN(C18:C29) -> 9.35 | D30: =MIN(D18:D29) -> 9.23 | E30: =MIN(E18:E29) -> 9.08 | F30: =MIN(F18:F29) -> 9.15 | G30: =MIN(G18:G29) -> 9.49
B31: 平均 | C31: =AVERAGE(C18:C29) -> 10.66636364 | D31: =AVERAGE(D18:D29) -> 10.81909091 | E31: =AVERAGE(E18:E29) -> 10.90818182 | F31: =AVERAGE(F18:F29) -> 11.157 | G31: =AVERAGE(G18:G29) -> 10.917
B32: 走行数 | C32: =COUNT(C18:C29) -> 11 | D32: =COUNT(D18:D29) -> 11 | E32: =COUNT(E18:E29) -> 11 | F32: =COUNT(F18:F29) -> 10 | G32: =COUNT(G18:G29) -> 10

Sheet 解答３
A1: 下図のとおりの表をB15から下に作成しなさい。
A2: 条件
A3: ・15行の行高は30、16-30行は行高12
A4: ・A列の幅は2、B:C列の幅は4、D:KとM:N列の幅は5、L列は８とする
A5: ・タイトルは24P、MSゴシック体、文字色は青で太文字、インデント５の均等割付
A6: ・タイトルのセルはB:Nを結合し、背景は縦横メッシュの黄色い網掛け、枠線は太線の黒
A7: ・タイトル以外の文字サイズは１０ポイント
A8: ・他のセル装飾は図のとおりとする
A9: ・一日目と二日目の評価は時間が８時間未満の場合に「×」が表示されるようにしてください。
A10: ・総合の評価は一日目と二日目の評価のどちらかに×が有れば「(-_-#)」が表示されるようにしてください。
A11: ・総合の氏名欄は苗字と名前の間に半角スペースを入れること。
A12: ・データの不足部は白地の部分は入力し、他の部分は全て式で補うこと。
B15: 活動参加時間
B16: 参加者 | D16: 一日目 | H16: 二日目 | L16: ２日間総合
B17: 姓 | C17: 名 | D17: 開始 | E17: 終了 | F17: 時間 | G17: 評価 | H17: 開始 | I17: 終了 | J17: 時間 | K17: 評価 | L17: 氏名 | M17: 時間 | N17: 評価
B18: 秋野 | C18: 野菊 | D18: 08:26:00 | E18: 16:30:00 | F18: =E18-D18 -> 08:04:00 | G18: =IF(F18<1/3,"×","") ->  | H18: 08:30:00 | I18: 16:28:00 | J18: =I18-H18 -> 07:58:00 | K18: =IF(J18<1/3,"×","") -> × | L18: =B18&" "&C18 -> 秋野 野菊 | M18: =SUM(F18,J18) -> 16:02:00 | N18: =IF(G18&K18<>"","(-_-#)","") -> (-_-#)
B19: 江差 | C19: 俊介 | D19: 08:55:00 | E19: 17:01:00 | F19: =E19-D19 -> 08:06:00 | G19: =IF(F19<1/3,"×","") ->  | H19: 08:57:00 | I19: 17:02:00 | J19: =I19-H19 -> 08:05:00 | K19: =IF(J19<1/3,"×","") ->  | L19: =B19&" "&C19 -> 江差 俊介 | M19: 16:11:00 | N19: =IF(G19&K19<>"","(-_-#)","") -> 
B20: 平和 | C20: 千代 | D20: 07:52:00 | E20: 16:05:00 | F20: 08:13:00 | H20: 07:55:00 | I20: 16:05:00 | J20: 08:10:00 | L20: 平和 千代 | M20: 16:23:00
B21: 村多 | C21: 杜氏 | D21: 08:20:00 | E21: 16:31:00 | F21: 08:11:00 | H21: 08:21:00 | I21: 16:29:00 | J21: 08:08:00 | L21: 村多 杜氏 | M21: 16:19:00
B22: 近井 | C22: 瑪瑙 | D22: 08:28:00 | E22: 16:20:00 | F22: 07:52:00 | G22: × | H22: 08:28:00 | I22: 16:48:00 | J22: 08:20:00 | L22: 近井 瑪瑙 | M22: 16:12:00 | N22: (-_-#)
B23: 目地 | C23: 潔 | D23: 09:18:00 | E23: 17:36:00 | F23: 08:18:00 | H23: 09:18:00 | I23: 17:33:00 | J23: 08:15:00 | L23: 目地 潔 | M23: 16:33:00
B24: 塁川 | C24: 鈴女 | D24: 08:14:00 | E24: 16:21:00 | F24: 08:07:00 | H24: 08:16:00 | I24: 16:20:00 | J24: 08:04:00 | L24: 塁川 鈴女 | M24: 16:11:00
B25: 節川 | C25: 桜子 | D25: 08:41:00 | E25: 16:46:00 | F25: 08:05:00 | H25: 08:43:00 | I25: 16:51:00 | J25: 08:08:00 | L25: 節川 桜子 | M25: 16:13:00
B26: 岸川 | C26: 森羅 | D26: 08:10:00 | E26: 16:14:00 | F26: 08:04:00 | H26: 08:07:00 | I26: 16:21:00 | J26: 08:14:00 | L26: 岸川 森羅 | M26: 16:18:00
B27: 猫山 | C27: 狗雄 | D27: 08:11:00 | E27: 16:06:00 | F27: 07:55:00 | G27: × | H27: 08:02:00 | I27: 16:00:00 | J27: 07:58:00 | K27: × | L27: 猫山 狗雄 | M27: 15:53:00 | N27: (-_-#)
B28: 井山 | C28: 毬藻 | D28: 07:54:00 | E28: 16:03:00 | F28: 08:09:00 | H28: 07:56:00 | I28: 16:06:00 | J28: 08:10:00 | L28: 井山 毬藻 | M28: 16:19:00
B29: 椎名 | C29: 涅槃 | D29: 08:25:00 | E29: 16:47:00 | F29: 08:22:00 | H29: 08:25:00 | I29: 16:45:00 | J29: 08:20:00 | L29: 椎名 涅槃 | M29: 16:42:00
D30: 平均時間 | F30: =AVERAGE(F18:F29) -> 08:07:10 | H30: 平均時間 | J30: =AVERAGE(J18:J29) -> 08:09:10 | L30: 平均 | M30: =AVERAGE(M18:M29) -> 16:16:20

Sheet 解答４
A1: 下図のとおりの表をB15から下に作成しなさい。
A2: 条件
A3: ・15-31行の行高は自動とする
A4: ・A列の幅は2、B列の幅は８、C:S列の幅は3.5、T:W列は自動調整とする
A5: ・C18:S18とC30:S30は縦書きとする
A6: ・B15:W31のフォントは10Pとする
A7: ・B15:F17、G15:G17、H15:J16、H17:J17、K15:V15、K16:V16、K17:V17、T30:T31、U30:V30、U31:V31をそれぞれセル結合しなさい
A8: ・他のセル装飾は図のとおりとする
A9: ・来期待遇、成否、可否は「基準」に従い、W列を参照して式を作ってください。
A10: ・データの不足部はB19:S29の部分は入力し、他の部分は全て式で補うこと。
B15: 今期の採択状況です。 欠席の多い委員は解任 させていただきます。 | G15: 基準 | H15: 採択基準 | K15: 投票成立は、投票率が右の比率を超えていること。 | W15: 0.8
K16: 可決は出席委員の賛成が右の値を超えていること | W16: 0.5
H17: 来期待遇 | K17: 出席率がが右の値を超えていなければ「解任」 | W17: 0.5
B19: 委員名 項目 | C19: 村多 | D19: 近井 | E19: 目地 | F19: 塁川 | G19: 節川 | H19: 岸川 | I19: 猫山 | J19: 井山 | K19: 椎名 | L19: 比地 | M19: 杉菜 | N19: 鶴多 | O19: 袈裟地 | P19: 三輪 | Q19: 藤山 | R19: 仁和 | S19: 雪山 | T19: 投票率 | U19: 成否 | V19: 賛成数 | W19: 可否
B20: 議題１ | C20: ○ | D20: × | E20: ○ | F20: × | H20: ○ | I20: ○ | J20: × | K20: ○ | L20: × | M20: ○ | N20: × | P20: ○ | Q20: × | S20: × | T20: =COUNTA(C20:S20)/COUNTA($C$19:$S$19) -> 0.8235294118 | U20: =IF(T20>$W$15,"成立","不成立") -> 成立 | V20: =COUNTIF(C20:S20,"○") -> 7 | W20: =IF(COUNTA(C20:S20)*$W$16<V20,"可決","否決") -> 否決
B21: 議題２ | D21: ○ | E21: ○ | F21: × | G21: × | H21: ○ | I21: ○ | J21: × | K21: ○ | L21: × | M21: ○ | N21: ○ | O21: × | P21: × | Q21: ○ | R21: × | S21: ○ | T21: =COUNTA(C21:S21)/COUNTA($C$19:$S$19) -> 0.9411764706 | U21: 成立 | V21: =COUNTIF(C21:S21,"○") -> 9 | W21: 可決
B22: 議題３ | D22: × | E22: ○ | F22: ○ | H22: × | I22: ○ | J22: × | K22: ○ | L22: × | M22: ○ | O22: × | P22: × | Q22: × | R22: ○ | T22: 0.7647058824 | U22: 不成立 | V22: 6 | W22: 否決
B23: 議題５ | C23: × | D23: × | E23: × | F23: ○ | G23: × | H23: ○ | I23: ○ | J23: ○ | K23: ○ | L23: × | M23: ○ | O23: × | P23: ○ | Q23: ○ | R23: ○ | S23: × | T23: 0.9411764706 | U23: 成立 | V23: 9 | W23: 可決
B24: 議題６ | D24: × | E24: × | F24: × | G24: × | H24: × | I24: × | J24: × | K24: × | L24: × | M24: ○ | O24: × | P24: × | Q24: × | R24: × | S24: ○ | T24: 0.8823529412 | U24: 成立 | V24: 2 | W24: 否決
B25: 議題７ | D25: ○ | E25: ○ | F25: ○ | H25: ○ | I25: ○ | K25: ○ | M25: ○ | O25: × | P25: ○ | Q25: ○ | R25: ○ | S25: ○ | T25: 0.7058823529 | U25: 不成立 | V25: 11 | W25: 可決
B26: 議題８ | D26: ○ | E26: ○ | F26: ○ | G26: × | H26: ○ | I26: × | J26: × | K26: ○ | L26: × | M26: ○ | N26: × | P26: ○ | Q26: × | S26: × | T26: 0.8235294118 | U26: 成立 | V26: 7 | W26: 否決
B27: 議題１０ | D27: × | E27: ○ | F27: ○ | H27: × | I27: ○ | K27: × | L27: × | M27: ○ | O27: × | P27: ○ | Q27: × | R27: ○ | S27: × | T27: 0.7647058824 | U27: 不成立 | V27: 6 | W27: 否決
B28: 議題１１ | C28: ○ | D28: ○ | E28: ○ | F28: ○ | H28: ○ | I28: ○ | J28: ○ | K28: ○ | L28: × | M28: ○ | O28: × | P28: ○ | Q28: × | R28: ○ | T28: 0.8235294118 | U28: 成立 | V28: 11 | W28: 可決
B29: 議題１２ | C29: ○ | D29: ○ | E29: ○ | F29: ○ | G29: × | H29: × | I29: ○ | J29: ○ | K29: × | L29: × | M29: ○ | N29: × | O29: × | P29: ○ | Q29: ○ | S29: ○ | T29: 0.9411764706 | U29: 成立 | V29: 10 | W29: 可決
B30: 出席率 | C30: =COUNTA(C20:C29)/COUNTA($B$20:$B$29) -> 0.4 | D30: =COUNTA(D20:D29)/COUNTA($B$20:$B$29) -> 1 | E30: 1 | F30: 1 | G30: 0.5 | H30: 1 | I30: 1 | J30: 0.8 | K30: 1 | L30: 0.9 | M30: 1 | N30: 0.4 | O30: 0.8 | P30: 1 | Q30: 1 | R30: 0.7 | S30: 0.8
B31: 来期待遇 | C31: =IF(C30<=$W$17,"解任","") -> 解任 | D31: =IF(D30<=$W$17,"解任","") ->  | G31: 解任 | N31: 解任

Sheet 解答５
A1: 下図のとおりの表をB15から下に作成しなさい。
A2: 条件
A3: ・15-32行の行高は13とする
A4: ・A列の幅は2、B:C列の幅は4、D:N列の幅は5とする
A5: ・タイトル以外のB15:N32のフォントは10Pとする
A6: ・タイトルのセルは背景を紫、フォントをMSP明朝の20P、白、太文字とする
A7: ・他のセル装飾は図のとおりとする
A8: ・平均は関数を用いて小数点以下第１位に四捨五入すること
A9: ・判定は判定基準の値未満の場合に「◆」と表示し、総合は判定に１個でも◆が有れば「◆」が表示されるようにすること
A10: ・順位は合計得点で決定すること
A11: ・データの不足部は白地の部分は入力し、他の部分は全て式で補うこと。
B15: Excel 試験結果 | J15: 判定 | K15: 学科１ | L15: 学科２ | M15: 実技１ | N15: 実技２
J16: 基準 | K16: 80 | L16: 60 | M16: 60 | N16: 75
B18: 姓 | C18: 名 | D18: 得点 | I18: 判定
D19: 学科１ | E19: 学科２ | F19: 実技１ | G19: 実技２ | H19: 合計 | I19: 学科１ | J19: 学科２ | K19: 実技１ | L19: 実技２ | M19: 総合 | N19: 順位
B20: 藤山 | C20: 深雪 | D20: 97 | E20: 98 | F20: 91 | G20: 78 | H20: =SUM(D20:G20) -> 364 | I20: =IF(D20<K$16,"◆","") ->  | M20: =IF(I20&J20&K20&L20<>"","◆","") ->  | N20: =RANK(H20,$H$20:$H$31,0) -> 4
B21: 仁和 | C21: 海豚 | D21: 35 | E21: 16 | F21: 100 | G21: 100 | H21: =SUM(D21:G21) -> 251 | I21: ◆ | J21: ◆ | M21: ◆ | N21: =RANK(H21,$H$20:$H$31,0) -> 11
B22: 雪山 | C22: 清美 | D22: 100 | E22: 92 | F22: 76 | G22: 100 | H22: 368 | N22: 3
B23: 立冬 | C23: 霜月 | D23: 81 | E23: 85 | F23: 99 | G23: 98 | H23: 363 | N23: 5
B24: 冬至 | C24: 蜜柑 | D24: 90 | E24: 90 | F24: 92 | G24: 100 | H24: 372 | N24: 2
B25: 沓崎 | C25: 睦月 | D25: 87 | E25: 88 | F25: 75 | G25: 86 | H25: 336 | N25: 6
B26: 牛山 | C26: 弥生 | D26: 100 | E26: 100 | F26: 99 | G26: 74 | H26: 373 | L26: ◆ | M26: ◆ | N26: 1
B27: 鉄火 | C27: 真紀 | D27: 76 | E27: 85 | F27: 95 | G27: 73 | H27: 329 | I27: ◆ | L27: ◆ | M27: ◆ | N27: 7
B28: 烈川 | C28: 怒涛 | D28: 78 | E28: 55 | F28: 0 | G28: 94 | H28: 227 | I28: ◆ | J28: ◆ | K28: ◆ | M28: ◆ | N28: 12
B29: 夏至 | C29: 孔雀 | D29: 87 | E29: 64 | F29: 60 | G29: 77 | H29: 288 | N29: 10
B30: 沼地 | C30: 鯉蔵 | D30: 83 | E30: 80 | F30: 79 | G30: 85 | H30: 327 | N30: 8
B31: 醍醐 | C31: ミカ | D31: 100 | E31: 96 | F31: 65 | G31: 48 | H31: 309 | L31: ◆ | M31: ◆ | N31: 9
B32: 平均 | D32: =ROUND(AVERAGE(D20:D31),1) -> 84.5 | E32: =ROUND(AVERAGE(E20:E31),1) -> 79.1 | F32: =ROUND(AVERAGE(F20:F31),1) -> 77.6 | G32: =ROUND(AVERAGE(G20:G31),1) -> 84.4 | H32: =ROUND(AVERAGE(H20:H31),1) -> 325.6
